[Event "Titled Tuesday Blitz June 28 Early 2022"]
[White "Sargissyan, Sargis"]
[Black "Yuan, Qingyu"]
[WhiteFideId "13303210"]
[BlackFideId "8609772"]
[WhiteElo "2174"]
[BlackElo "2359"]
[Result "0-1"]
[Round "02"]
[TimeControl "180+1"]
[Date "2022.06.28"]
[WhiteClock "0:00:04"]
[BlackClock "0:00:07"]

1. e4 {[%clk 0:03:00]}  c6 {[%clk 0:02:54]} 2. Nc3 {[%clk 0:02:57]}  d5 {[%clk 0:02:53]} 3. Nf3 {[%clk 0:02:56]}  dxe4 {[%clk 0:02:54]} 4. Nxe4 {[%clk 0:02:56]}  Nf6 {[%clk 0:02:54]} 5. Qe2 {[%clk 0:02:53]}  Nxe4 {[%clk 0:02:55]} 6. Qxe4 {[%clk 0:02:53]}  Nd7 {[%clk 0:02:55]} 7. b3 {[%clk 0:02:53]}  Nf6 {[%clk 0:02:54]} 8. Qe2 {[%clk 0:02:53]}  Bg4 {[%clk 0:02:41]} 9. Bb2 {[%clk 0:02:52]}  e6 {[%clk 0:02:42]} 10. h3 {[%clk 0:02:49]}  Bh5 {[%clk 0:02:41]} 11. O-O-O {[%clk 0:02:11]}  Qa5 {[%clk 0:02:36]} 12. Kb1 {[%clk 0:02:09]}  Ba3 {[%clk 0:02:36]} 13. g4 {[%clk 0:02:00]}  Bxb2 {[%clk 0:02:33]} 14. Kxb2 {[%clk 0:02:00]}  Bg6 {[%clk 0:02:33]} 15. Ne5 {[%clk 0:01:56]}  O-O-O {[%clk 0:02:23]} 16. Nxg6 {[%clk 0:01:45]}  hxg6 {[%clk 0:02:23]} 17. Bg2 {[%clk 0:01:46]}  g5 {[%clk 0:02:11]} 18. Rhe1 {[%clk 0:01:38]}  Nd7 {[%clk 0:01:37]} 19. d4 {[%clk 0:01:30]}  Rhe8 {[%clk 0:01:34]} 20. c4 {[%clk 0:01:30]}  Kb8 {[%clk 0:01:30]} 21. d5 {[%clk 0:01:20]}  cxd5 {[%clk 0:01:12]} 22. cxd5 {[%clk 0:01:19]}  Nf6 {[%clk 0:01:06]} 23. d6 {[%clk 0:00:44]}  Rd7 {[%clk 0:01:05]} 24. Qe5 {[%clk 0:00:42]}  Qb6 {[%clk 0:00:59]} 25. Re2 {[%clk 0:00:36]}  Red8 {[%clk 0:00:48]} 26. Red2 {[%clk 0:00:36]}  Ne8 {[%clk 0:00:28]} 27. Qxg5 {[%clk 0:00:35]}  Rxd6 {[%clk 0:00:29]} 28. Qf4 {[%clk 0:00:26]}  f6 {[%clk 0:00:26]} 29. Bf3 {[%clk 0:00:22]}  e5 {[%clk 0:00:25]} 30. Rxd6 {[%clk 0:00:21]}  Rxd6 {[%clk 0:00:16]} 31. Qe3 {[%clk 0:00:19]}  Qd8 {[%clk 0:00:08]} 32. Rxd6 {[%clk 0:00:18]}  Qxd6 {[%clk 0:00:09]} 33. Kc2 {[%clk 0:00:17]}  Nc7 {[%clk 0:00:08]} 34. Qe4 {[%clk 0:00:17]}  Qb6 {[%clk 0:00:06]} 35. Kc3 {[%clk 0:00:16]}  Ne6 {[%clk 0:00:06]} 36. a4 {[%clk 0:00:15]}  Nd4 {[%clk 0:00:06]} 37. Qd5 {[%clk 0:00:15]}  a6 {[%clk 0:00:06]} 38. a5 {[%clk 0:00:15]}  Qc7+ {[%clk 0:00:06]} 39. Kb2 {[%clk 0:00:13]}  Nb5 {[%clk 0:00:06]} 40. Qc4 {[%clk 0:00:12]}  Qxa5 {[%clk 0:00:06]} 41. Qg8+ {[%clk 0:00:12]}  Ka7 {[%clk 0:00:06]} 42. Qxg7 {[%clk 0:00:12]}  Qc3+ {[%clk 0:00:07]} 43. Ka2 {[%clk 0:00:11]}  Qxf3 {[%clk 0:00:07]} 44. Qf8 {[%clk 0:00:07]}  Qxf2+ {[%clk 0:00:07]} 45. Ka1 {[%clk 0:00:06]}  Nc3 {[%clk 0:00:07]} 46. Qa3 {[%clk 0:00:04]}  e4 {[%clk 0:00:07]} 0-1


[Site "https://www.chess.com"]

[Event "Titled Tuesday Blitz June 28 Early 2022"]
[White "Silva, Pedro Gil Ferreira Da"]
[Black "Golubovskis, Maksims"]
[WhiteFideId "1946102"]
[BlackFideId "11608528"]
[WhiteElo "1863"]
[BlackElo "2102"]
[Result "0-1"]
[Round "02"]
[TimeControl "180+1"]
[Date "2022.06.28"]
[WhiteClock "0:00:11"]
[BlackClock "0:00:31"]

1. e4 {[%clk 0:03:00]}  c5 {[%clk 0:03:00]} 2. Nf3 {[%clk 0:02:57]}  d6 {[%clk 0:03:00]} 3. d4 {[%clk 0:02:54]}  Nf6 {[%clk 0:03:00]} 4. Nc3 {[%clk 0:02:53]}  cxd4 {[%clk 0:03:00]} 5. Qxd4 {[%clk 0:02:54]}  Nc6 {[%clk 0:03:00]} 6. Bb5 {[%clk 0:02:52]}  Bd7 {[%clk 0:03:00]} 7. Bxc6 {[%clk 0:02:45]}  Bxc6 {[%clk 0:03:00]} 8. Bg5 {[%clk 0:02:45]}  e6 {[%clk 0:03:00]} 9. O-O-O {[%clk 0:02:44]}  Be7 {[%clk 0:03:01]} 10. Rhe1 {[%clk 0:02:43]}  O-O {[%clk 0:02:56]} 11. Kb1 {[%clk 0:02:42]}  b5 {[%clk 0:02:42]} 12. Bxf6 {[%clk 0:02:29]}  gxf6 {[%clk 0:02:32]} 13. Re3 {[%clk 0:02:16]}  a5 {[%clk 0:02:17]} 14. Nh4 {[%clk 0:01:51]}  Kh8 {[%clk 0:02:12]} 15. f4 {[%clk 0:01:38]}  Rg8 {[%clk 0:02:06]} 16. Rh3 {[%clk 0:01:33]}  Rg4 {[%clk 0:01:58]} 17. Qe3 {[%clk 0:01:20]}  b4 {[%clk 0:01:48]} 18. Ne2 {[%clk 0:01:16]}  f5 {[%clk 0:01:44]} 19. exf5 {[%clk 0:00:45]}  Bxh4 {[%clk 0:01:23]} 20. fxe6 {[%clk 0:00:45]}  Bxg2 {[%clk 0:01:19]} 21. Rxh4 {[%clk 0:00:26]}  Qxh4 {[%clk 0:01:00]} 22. exf7 {[%clk 0:00:25]}  Rf8 {[%clk 0:00:58]} 23. Qd4+ {[%clk 0:00:25]}  Rg7 {[%clk 0:00:54]} 24. Rg1 {[%clk 0:00:23]}  Qxh2 {[%clk 0:00:42]} 25. f5 {[%clk 0:00:17]}  Qe5 {[%clk 0:00:38]} 26. Qh4 {[%clk 0:00:13]}  Qxe2 {[%clk 0:00:31]} 27. f6 {[%clk 0:00:11]}  Rgxf7 {[%clk 0:00:31]} 0-1


[Site "https://www.chess.com"]

[Event "Titled Tuesday Blitz June 28 Early 2022"]
[White "So, Wesley"]
[Black "Terrieux, Kevin"]
[WhiteFideId "5202213"]
[BlackFideId "622591"]
[WhiteElo "2742"]
[BlackElo "2482"]
[Result "1-0"]
[Round "02"]
[TimeControl "180+1"]
[Date "2022.06.28"]
[WhiteClock "0:00:32"]
[BlackClock "0:00:02"]

1. e4 {[%clk 0:03:00]}  c5 {[%clk 0:02:59]} 2. Nf3 {[%clk 0:03:00]}  e6 {[%clk 0:02:59]} 3. g3 {[%clk 0:02:58]}  d6 {[%clk 0:02:58]} 4. d4 {[%clk 0:02:55]}  Nf6 {[%clk 0:02:50]} 5. Qe2 {[%clk 0:02:25]}  cxd4 {[%clk 0:02:45]} 6. Nxd4 {[%clk 0:02:26]}  Nc6 {[%clk 0:02:45]} 7. Nxc6 {[%clk 0:02:26]}  bxc6 {[%clk 0:02:45]} 8. Bg2 {[%clk 0:02:27]}  e5 {[%clk 0:02:42]} 9. O-O {[%clk 0:02:27]}  Be7 {[%clk 0:02:42]} 10. c4 {[%clk 0:02:23]}  O-O {[%clk 0:02:39]} 11. Nc3 {[%clk 0:02:24]}  Nd7 {[%clk 0:02:38]} 12. Be3 {[%clk 0:02:22]}  Nc5 {[%clk 0:02:37]} 13. Rad1 {[%clk 0:02:17]}  Qa5 {[%clk 0:02:11]} 14. f4 {[%clk 0:02:07]}  Rb8 {[%clk 0:02:01]} 15. f5 {[%clk 0:01:47]}  f6 {[%clk 0:01:42]} 16. Rc1 {[%clk 0:01:40]}  Ba6 {[%clk 0:01:29]} 17. b3 {[%clk 0:01:32]}  Rfd8 {[%clk 0:01:19]} 18. Qd2 {[%clk 0:01:32]}  Qc7 {[%clk 0:01:15]} 19. g4 {[%clk 0:01:31]}  Bc8 {[%clk 0:01:06]} 20. h4 {[%clk 0:01:24]}  a5 {[%clk 0:01:06]} 21. Rb1 {[%clk 0:01:23]}  Bd7 {[%clk 0:01:03]} 22. g5 {[%clk 0:01:23]}  Be8 {[%clk 0:01:02]} 23. Bf3 {[%clk 0:01:22]}  Bf7 {[%clk 0:00:58]} 24. Kh1 {[%clk 0:01:19]}  Kh8 {[%clk 0:00:58]} 25. Rg1 {[%clk 0:01:18]}  Bf8 {[%clk 0:00:42]} 26. Rg2 {[%clk 0:01:15]}  a4 {[%clk 0:00:38]} 27. b4 {[%clk 0:01:07]}  Na6 {[%clk 0:00:37]} 28. b5 {[%clk 0:01:03]}  Nc5 {[%clk 0:00:37]} 29. Rbg1 {[%clk 0:00:58]}  fxg5 {[%clk 0:00:30]} 30. Bxg5 {[%clk 0:00:59]}  Rd7 {[%clk 0:00:22]} 31. h5 {[%clk 0:00:58]}  h6 {[%clk 0:00:20]} 32. Be3 {[%clk 0:00:46]}  Bxc4 {[%clk 0:00:20]} 33. f6 {[%clk 0:00:46]}  Rf7 {[%clk 0:00:16]} 34. fxg7+ {[%clk 0:00:42]}  Bxg7 {[%clk 0:00:16]} 35. Bxh6 {[%clk 0:00:41]}  Rg8 {[%clk 0:00:05]} 36. Be2 {[%clk 0:00:33]}  Rf4 {[%clk 0:00:01]} 37. Bxf4 {[%clk 0:00:32]}  exf4 {[%clk 0:00:02]} 38. Bxc4 {[%clk 0:00:32]} 1-0


[Site "https://www.chess.com"]

[Event "Titled Tuesday Blitz June 28 Early 2022"]
[White "Sokolovsky, Yahli"]
[Black "Kamsky, Gata"]
[WhiteFideId "2820242"]
[BlackFideId "2000024"]
[WhiteElo "1770"]
[BlackElo "2645"]
[Result "0-1"]
[Round "02"]
[TimeControl "180+1"]
[Date "2022.06.28"]
[WhiteClock "0:00:01"]
[BlackClock "0:00:21"]

1. b3 {[%clk 0:03:00]}  d5 {[%clk 0:02:57]} 2. Bb2 {[%clk 0:03:01]}  Bf5 {[%clk 0:02:57]} 3. e3 {[%clk 0:03:00]}  e6 {[%clk 0:02:57]} 4. Nf3 {[%clk 0:03:00]}  Nf6 {[%clk 0:02:57]} 5. d4 {[%clk 0:02:59]}  c6 {[%clk 0:02:52]} 6. Bd3 {[%clk 0:02:59]}  Bg6 {[%clk 0:02:47]} 7. Ne5 {[%clk 0:02:55]}  Nbd7 {[%clk 0:02:47]} 8. f4 {[%clk 0:02:48]}  Bb4+ {[%clk 0:02:46]} 9. c3 {[%clk 0:02:20]}  Be7 {[%clk 0:02:38]} 10. Nxg6 {[%clk 0:02:16]}  hxg6 {[%clk 0:02:37]} 11. Nd2 {[%clk 0:02:16]}  c5 {[%clk 0:02:29]} 12. Qe2 {[%clk 0:02:03]}  cxd4 {[%clk 0:02:20]} 13. exd4 {[%clk 0:01:59]}  Qc7 {[%clk 0:02:17]} 14. g3 {[%clk 0:01:58]}  a6 {[%clk 0:02:12]} 15. Nf3 {[%clk 0:01:51]}  b5 {[%clk 0:01:51]} 16. Ne5 {[%clk 0:01:51]}  Ne4 {[%clk 0:01:43]} 17. Bxe4 {[%clk 0:01:47]}  dxe4 {[%clk 0:01:42]} 18. Qxe4 {[%clk 0:01:47]}  Rc8 {[%clk 0:01:42]} 19. Nxd7 {[%clk 0:01:39]}  Qxd7 {[%clk 0:01:41]} 20. O-O {[%clk 0:01:39]}  O-O {[%clk 0:01:40]} 21. Rac1 {[%clk 0:01:35]}  Rb8 {[%clk 0:01:38]} 22. Rfd1 {[%clk 0:01:33]}  Rfd8 {[%clk 0:01:37]} 23. Ba1 {[%clk 0:01:22]}  g5 {[%clk 0:01:37]} 24. Rf1 {[%clk 0:01:20]}  gxf4 {[%clk 0:01:35]} 25. Qxf4 {[%clk 0:01:20]}  Bf8 {[%clk 0:01:26]} 26. Rc2 {[%clk 0:01:17]}  Rb7 {[%clk 0:01:23]} 27. Qe4 {[%clk 0:01:08]}  Rc8 {[%clk 0:01:16]} 28. Rcf2 {[%clk 0:01:06]}  Qc6 {[%clk 0:01:16]} 29. Qxc6 {[%clk 0:01:00]}  Rxc6 {[%clk 0:01:16]} 30. Rd1 {[%clk 0:00:58]}  Rd7 {[%clk 0:01:13]} 31. Rff1 {[%clk 0:00:55]}  f6 {[%clk 0:01:10]} 32. Kf2 {[%clk 0:00:53]}  Kf7 {[%clk 0:01:10]} 33. Ke3 {[%clk 0:00:53]}  a5 {[%clk 0:01:08]} 34. Bb2 {[%clk 0:00:35]}  a4 {[%clk 0:01:08]} 35. bxa4 {[%clk 0:00:30]}  bxa4 {[%clk 0:01:07]} 36. Rb1 {[%clk 0:00:31]}  Kg6 {[%clk 0:01:01]} 37. Ba1 {[%clk 0:00:23]}  Rd5 {[%clk 0:00:56]} 38. Rb8 {[%clk 0:00:20]}  Bd6 {[%clk 0:00:51]} 39. Rb7 {[%clk 0:00:20]}  e5 {[%clk 0:00:44]} 40. Ke4 {[%clk 0:00:20]}  Ra5 {[%clk 0:00:44]} 41. Rf2 {[%clk 0:00:06]}  exd4 {[%clk 0:00:41]} 42. cxd4 {[%clk 0:00:06]}  a3 {[%clk 0:00:37]} 43. Rb1 {[%clk 0:00:05]}  Rc8 {[%clk 0:00:32]} 44. Rd1 {[%clk 0:00:04]}  Re8+ {[%clk 0:00:30]} 45. Kf3 {[%clk 0:00:04]}  Rb5 {[%clk 0:00:28]} 46. Bc3 {[%clk 0:00:04]}  Rc8 {[%clk 0:00:28]} 47. Rc2 {[%clk 0:00:03]}  Rb2 {[%clk 0:00:24]} 48. Bxb2 {[%clk 0:00:01]}  Rxc2 {[%clk 0:00:24]} 49. Bc1 {[%clk 0:00:02]}  Rxa2 {[%clk 0:00:24]} 50. h4 {[%clk 0:00:02]}  Ra1 {[%clk 0:00:23]} 51. Ke2 {[%clk 0:00:02]}  a2 {[%clk 0:00:23]} 52. Bb2 {[%clk 0:00:03]}  Rb1 {[%clk 0:00:23]} 53. Bc3 {[%clk 0:00:03]}  Kf5 {[%clk 0:00:22]} 54. d5 {[%clk 0:00:04]}  Kg4 {[%clk 0:00:22]} 55. Kd2 {[%clk 0:00:01]}  Be5 {[%clk 0:00:21]} 56. Kc2 {[%clk 0:00:01]}  Rxd1 {[%clk 0:00:21]} 0-1


[Site "https://www.chess.com"]

[Event "Titled Tuesday Blitz June 28 Early 2022"]
[White "Steinberg, Nitzan"]
[Black "Tan, Jun Ying"]
[WhiteFideId "2801795"]
[BlackFideId "5710413"]
[WhiteElo "2471"]
[BlackElo "1827"]
[Result "1-0"]
[Round "02"]
[TimeControl "180+1"]
[Date "2022.06.28"]
[WhiteClock "0:00:17"]
[BlackClock "0:00:02"]

1. Nf3 {[%clk 0:03:00]}  c5 {[%clk 0:02:59]} 2. e4 {[%clk 0:03:00]}  Nc6 {[%clk 0:02:59]} 3. Bb5 {[%clk 0:03:00]}  d6 {[%clk 0:02:59]} 4. O-O {[%clk 0:02:59]}  Bd7 {[%clk 0:03:00]} 5. Re1 {[%clk 0:02:59]}  Nf6 {[%clk 0:03:00]} 6. c3 {[%clk 0:02:59]}  a6 {[%clk 0:02:56]} 7. Bf1 {[%clk 0:03:00]}  Bg4 {[%clk 0:02:56]} 8. h3 {[%clk 0:02:55]}  Bxf3 {[%clk 0:02:56]} 9. Qxf3 {[%clk 0:02:55]}  e6 {[%clk 0:02:57]} 10. Qd1 {[%clk 0:02:54]}  Be7 {[%clk 0:02:52]} 11. a4 {[%clk 0:02:54]}  O-O {[%clk 0:02:51]} 12. Na3 {[%clk 0:02:53]}  d5 {[%clk 0:02:50]} 13. e5 {[%clk 0:02:49]}  Nd7 {[%clk 0:02:50]} 14. d4 {[%clk 0:02:47]}  cxd4 {[%clk 0:02:44]} 15. cxd4 {[%clk 0:02:48]}  Qb6 {[%clk 0:02:45]} 16. Nc2 {[%clk 0:02:47]}  Nb4 {[%clk 0:02:44]} 17. a5 {[%clk 0:02:33]}  Qc7 {[%clk 0:02:43]} 18. Ne3 {[%clk 0:02:30]}  Rfc8 {[%clk 0:02:40]} 19. Bd2 {[%clk 0:02:26]}  Qd8 {[%clk 0:02:24]} 20. Bc3 {[%clk 0:02:15]}  b6 {[%clk 0:02:13]} 21. axb6 {[%clk 0:02:13]}  Qxb6 {[%clk 0:02:11]} 22. g3 {[%clk 0:02:07]}  a5 {[%clk 0:02:10]} 23. h4 {[%clk 0:02:07]}  Qc6 {[%clk 0:01:59]} 24. Rc1 {[%clk 0:01:59]}  Na2 {[%clk 0:01:57]} 25. Rc2 {[%clk 0:01:52]}  Nxc3 {[%clk 0:01:57]} 26. bxc3 {[%clk 0:01:47]}  Nb6 {[%clk 0:01:53]} 27. c4 {[%clk 0:01:44]}  dxc4 {[%clk 0:01:37]} 28. Bg2 {[%clk 0:01:36]}  Nd5 {[%clk 0:01:37]} 29. Nxc4 {[%clk 0:01:30]}  Qa4 {[%clk 0:01:30]} 30. Qe2 {[%clk 0:01:22]}  Rab8 {[%clk 0:01:05]} 31. Rec1 {[%clk 0:01:22]}  Nb4 {[%clk 0:00:59]} 32. Rb2 {[%clk 0:01:18]}  Qb5 {[%clk 0:00:49]} 33. Bf1 {[%clk 0:01:18]}  Qd5 {[%clk 0:00:45]} 34. Nb6 {[%clk 0:01:18]}  Rxc1 {[%clk 0:00:33]} 35. Nxd5 {[%clk 0:01:18]}  exd5 {[%clk 0:00:33]} 36. Kh2 {[%clk 0:01:12]}  a4 {[%clk 0:00:30]} 37. e6 {[%clk 0:00:57]}  a3 {[%clk 0:00:22]} 38. exf7+ {[%clk 0:00:53]}  Kxf7 {[%clk 0:00:23]} 39. Qf3+ {[%clk 0:00:41]}  Kg8 {[%clk 0:00:21]} 40. Qxa3 {[%clk 0:00:40]}  Rxf1 {[%clk 0:00:18]} 41. Qa7 {[%clk 0:00:38]}  Bd6 {[%clk 0:00:13]} 42. Qd7 {[%clk 0:00:33]}  Bf8 {[%clk 0:00:10]} 43. Qe6+ {[%clk 0:00:31]}  Kh8 {[%clk 0:00:10]} 44. Qe5 {[%clk 0:00:31]}  Rd8 {[%clk 0:00:07]} 45. Qc7 {[%clk 0:00:28]}  Re8 {[%clk 0:00:06]} 46. Qd7 {[%clk 0:00:24]}  Ree1 {[%clk 0:00:04]} 47. Qc8 {[%clk 0:00:22]}  Rh1+ {[%clk 0:00:04]} 48. Kg2 {[%clk 0:00:23]}  Rhg1+ {[%clk 0:00:03]} 49. Kf3 {[%clk 0:00:22]}  Kg8 {[%clk 0:00:03]} 50. Rxb4 {[%clk 0:00:22]}  Re7 {[%clk 0:00:03]} 51. Rb7 {[%clk 0:00:19]}  Re4 {[%clk 0:00:02]} 52. Rb8 {[%clk 0:00:17]} 1-0


[Site "https://www.chess.com"]

[Event "Titled Tuesday Blitz June 28 Early 2022"]
[White "Sukandar, Irine Kharisma"]
[Black "Nunez V, Gustavo Eduardo"]
[WhiteFideId "7101937"]
[BlackFideId "4403690"]
[WhiteElo "2293"]
[BlackElo "2228"]
[Result "1-0"]
[Round "02"]
[TimeControl "180+1"]
[Date "2022.06.28"]
[WhiteClock "0:00:22"]
[BlackClock "0:00:19"]

1. d4 {[%clk 0:03:00]}  Nf6 {[%clk 0:02:52]} 2. Nc3 {[%clk 0:03:00]}  g6 {[%clk 0:02:51]} 3. e4 {[%clk 0:03:00]}  d6 {[%clk 0:02:51]} 4. Nf3 {[%clk 0:03:00]}  Bg7 {[%clk 0:02:51]} 5. h3 {[%clk 0:03:00]}  O-O {[%clk 0:02:52]} 6. Be3 {[%clk 0:03:00]}  Nbd7 {[%clk 0:02:52]} 7. Qd2 {[%clk 0:03:01]}  e5 {[%clk 0:02:53]} 8. dxe5 {[%clk 0:02:56]}  Nxe5 {[%clk 0:02:54]} 9. Nxe5 {[%clk 0:02:55]}  dxe5 {[%clk 0:02:55]} 10. Bd3 {[%clk 0:02:50]}  Be6 {[%clk 0:02:53]} 11. Bh6 {[%clk 0:02:50]}  c6 {[%clk 0:02:52]} 12. Rd1 {[%clk 0:02:39]}  Qb6 {[%clk 0:02:44]} 13. Bxg7 {[%clk 0:02:35]}  Kxg7 {[%clk 0:02:44]} 14. O-O {[%clk 0:02:35]}  Rfd8 {[%clk 0:02:36]} 15. Qg5 {[%clk 0:02:33]}  Nd7 {[%clk 0:02:18]} 16. b3 {[%clk 0:02:30]}  f6 {[%clk 0:02:16]} 17. Qg3 {[%clk 0:02:25]}  Nc5 {[%clk 0:02:16]} 18. Kh1 {[%clk 0:02:18]}  Qb4 {[%clk 0:02:15]} 19. Ne2 {[%clk 0:01:55]}  Nxe4 {[%clk 0:02:14]} 20. Qe3 {[%clk 0:01:53]}  Nc5 {[%clk 0:02:04]} 21. f4 {[%clk 0:01:50]}  e4 {[%clk 0:01:59]} 22. a3 {[%clk 0:01:49]}  Qxa3 {[%clk 0:01:40]} 23. Bxe4 {[%clk 0:01:49]}  Nxe4 {[%clk 0:01:29]} 24. Qxe4 {[%clk 0:01:48]}  Bd5 {[%clk 0:01:28]} 25. Qe3 {[%clk 0:01:36]}  Re8 {[%clk 0:01:26]} 26. Qf2 {[%clk 0:01:36]}  Qb2 {[%clk 0:01:13]} 27. Nd4 {[%clk 0:01:28]}  Re4 {[%clk 0:01:11]} 28. f5 {[%clk 0:01:26]}  g5 {[%clk 0:00:51]} 29. Ne6+ {[%clk 0:01:26]}  Rxe6 {[%clk 0:00:39]} 30. fxe6 {[%clk 0:01:25]}  Bxe6 {[%clk 0:00:39]} 31. Rd4 {[%clk 0:01:23]}  Rf8 {[%clk 0:00:38]} 32. Qe3 {[%clk 0:01:20]}  Bd5 {[%clk 0:00:34]} 33. Rd2 {[%clk 0:01:16]}  Qe5 {[%clk 0:00:31]} 34. Qxa7 {[%clk 0:01:12]}  Qc3 {[%clk 0:00:26]} 35. Rxd5 {[%clk 0:00:48]}  cxd5 {[%clk 0:00:23]} 36. Qxb7+ {[%clk 0:00:48]}  Rf7 {[%clk 0:00:23]} 37. Qxd5 {[%clk 0:00:48]}  Qxc2 {[%clk 0:00:24]} 38. b4 {[%clk 0:00:47]}  Qe2 {[%clk 0:00:23]} 39. Rd1 {[%clk 0:00:44]}  Re7 {[%clk 0:00:16]} 40. b5 {[%clk 0:00:43]}  Re5 {[%clk 0:00:14]} 41. Qd7+ {[%clk 0:00:41]}  Re7 {[%clk 0:00:13]} 42. Qd6 {[%clk 0:00:37]}  Qe5 {[%clk 0:00:12]} 43. b6 {[%clk 0:00:27]}  Qxd6 {[%clk 0:00:12]} 44. Rxd6 {[%clk 0:00:27]}  Rb7 {[%clk 0:00:12]} 45. g4 {[%clk 0:00:26]}  Kf7 {[%clk 0:00:11]} 46. Kg2 {[%clk 0:00:26]}  Ke7 {[%clk 0:00:11]} 47. Rc6 {[%clk 0:00:26]}  h6 {[%clk 0:00:05]} 48. Kf3 {[%clk 0:00:25]}  Rd7 {[%clk 0:00:05]} 49. Ke4 {[%clk 0:00:24]}  Kf7 {[%clk 0:00:05]} 50. Rc7 {[%clk 0:00:23]}  Ke6 {[%clk 0:00:05]} 51. Rxd7 {[%clk 0:00:21]}  Kxd7 {[%clk 0:00:06]} 52. Kf5 {[%clk 0:00:21]}  Kc6 {[%clk 0:00:05]} 53. Kxf6 {[%clk 0:00:22]}  Kxb6 {[%clk 0:00:06]} 54. Kg6 {[%clk 0:00:22]}  Kc5 {[%clk 0:00:06]} 55. Kxh6 {[%clk 0:00:23]}  Kd6 {[%clk 0:00:07]} 56. Kxg5 {[%clk 0:00:23]}  Ke7 {[%clk 0:00:08]} 57. Kg6 {[%clk 0:00:23]}  Kf8 {[%clk 0:00:08]} 58. Kh7 {[%clk 0:00:23]}  Kf7 {[%clk 0:00:09]} 59. g5 {[%clk 0:00:23]}  Ke6 {[%clk 0:00:09]} 60. g6 {[%clk 0:00:23]}  Kf5 {[%clk 0:00:10]} 61. g7 {[%clk 0:00:24]}  Kg5 {[%clk 0:00:11]} 62. g8=Q+ {[%clk 0:00:24]}  Kf4 {[%clk 0:00:12]} 63. Qg4+ {[%clk 0:00:23]}  Ke5 {[%clk 0:00:13]} 64. Kg6 {[%clk 0:00:23]}  Kd6 {[%clk 0:00:14]} 65. h4 {[%clk 0:00:23]}  Ke5 {[%clk 0:00:14]} 66. h5 {[%clk 0:00:23]}  Kd6 {[%clk 0:00:15]} 67. h6 {[%clk 0:00:24]}  Ke5 {[%clk 0:00:15]} 68. h7 {[%clk 0:00:24]}  Kd5 {[%clk 0:00:16]} 69. h8=Q {[%clk 0:00:23]}  Kc6 {[%clk 0:00:17]} 70. Qc3+ {[%clk 0:00:22]}  Kb6 {[%clk 0:00:18]} 71. Qgb4+ {[%clk 0:00:22]}  Ka6 {[%clk 0:00:19]} 72. Qca3# {[%clk 0:00:22]} 1-0


[Site "https://www.chess.com"]

[Event "Titled Tuesday Blitz June 28 Early 2022"]
[White "Tatarinov, Dmitry"]
[Black "Valle Maytin, Luis Enrique"]
[WhiteFideId "24160067"]
[BlackFideId "3503666"]
[WhiteElo "2302"]
[BlackElo "2322"]
[Result "1-0"]
[Round "02"]
[TimeControl "180+1"]
[Date "2022.06.28"]
[WhiteClock "0:02:56"]
[BlackClock "0:00:20"]

1. d4 {[%clk 0:03:00]}  Nf6 {[%clk 0:00:22]} 2. Nf3 {[%clk 0:02:59]}  g6 {[%clk 0:00:21]} 3. c4 {[%clk 0:02:59]}  Bg7 {[%clk 0:00:21]} 4. Nc3 {[%clk 0:03:00]}  d6 {[%clk 0:00:22]} 5. e4 {[%clk 0:02:59]}  O-O {[%clk 0:00:22]} 6. Be2 {[%clk 0:02:59]}  Nc6 {[%clk 0:00:22]} 7. O-O {[%clk 0:03:00]}  e5 {[%clk 0:00:22]} 8. d5 {[%clk 0:03:01]}  Ne7 {[%clk 0:00:22]} 9. b4 {[%clk 0:03:02]}  Nd7 {[%clk 0:00:23]} 10. a4 {[%clk 0:03:01]}  f5 {[%clk 0:00:23]} 11. Ba3 {[%clk 0:03:01]}  a5 {[%clk 0:00:23]} 12. bxa5 {[%clk 0:03:01]}  Rxa5 {[%clk 0:00:24]} 13. Bb4 {[%clk 0:03:02]}  Ra8 {[%clk 0:00:24]} 14. a5 {[%clk 0:03:02]}  Nf6 {[%clk 0:00:23]} 15. c5 {[%clk 0:03:01]}  f4 {[%clk 0:00:22]} 16. cxd6 {[%clk 0:03:01]}  cxd6 {[%clk 0:00:22]} 17. Nd2 {[%clk 0:03:00]}  g5 {[%clk 0:00:22]} 18. Nc4 {[%clk 0:03:00]}  Ne8 {[%clk 0:00:20]} 19. Bg4 {[%clk 0:02:59]}  Bxg4 {[%clk 0:00:20]} 20. Qxg4 {[%clk 0:03:00]}  Nf6 {[%clk 0:00:20]} 21. Qe6+ {[%clk 0:02:59]}  Kh8 {[%clk 0:00:21]} 22. Bxd6 {[%clk 0:02:59]}  Re8 {[%clk 0:00:20]} 23. Nxe5 {[%clk 0:02:59]}  Ng6 {[%clk 0:00:19]} 24. Nf7+ {[%clk 0:03:00]}  Kg8 {[%clk 0:00:19]} 25. Nxd8+ {[%clk 0:03:00]}  Rxe6 {[%clk 0:00:20]} 26. Nxe6 {[%clk 0:03:00]}  Ng4 {[%clk 0:00:20]} 27. Rac1 {[%clk 0:02:56]}  N4e5 {[%clk 0:00:19]} 28. Bxe5 {[%clk 0:02:56]}  Nxe5 {[%clk 0:00:20]} 1-0


[Site "https://www.chess.com"]